bitfinex/quotes_BTCUSD_20240712
["timestamp","ask_amount","ask_price","bid_price","bid_amount"]
[1720805287942,2.21756415,58332.0,58331.0,0.002913]
[1720805288345,2.489935,58332.0,58331.0,0.002913]
[1720805288680,2.21656415,58332.0,58331.0,0.002913]
[1720805288801,2.48780155,58332.0,58331.0,0.002913]
[1720805290817,2.48805512,58332.0,58331.0,0.002913]
[1720805291235,2.48834363,58332.0,58331.0,0.002913]
[1720805292410,2.49874876,58332.0,58331.0,0.002913]
[1720805292776,2.39874876,58332.0,58331.0,0.002913]
[1720805292990,2.49874876,58332.0,58331.0,0.002913]
[1720805293423,2.19874876,58332.0,58331.0,0.002913]
[1720805293632,2.19876553,58332.0,58331.0,0.002913]
[1720805293826,1.58566413,58332.0,58331.0,0.002913]
[1720805294025,1.74876485,58332.0,58331.0,0.065613]
[1720805294511,1.74876485,58332.0,58331.0,0.002913]
[1720805295264,2.53652885,58332.0,58331.0,0.002913]
[1720805295519,2.53331446,58332.0,58331.0,0.002913]
[1720805295845,2.63331446,58332.0,58331.0,0.002913]
[1720805296131,2.73331446,58332.0,58331.0,0.002913]
[1720805297276,2.73406997,58332.0,58331.0,0.002913]
[1720805299518,2.63406997,58332.0,58331.0,0.002913]
[1720805299691,2.73406997,58332.0,58331.0,0.002913]
[1720805300670,2.73337816,58332.0,58331.0,0.002913]
[1720805301064,2.64586554,58332.0,58331.0,0.002913]
[1720805301268,2.73315755,58332.0,58331.0,0.002913]
[1720805301464,3.25692155,58332.0,58331.0,0.002913]
[1720805301671,2.91405755,58332.0,58331.0,0.002913]
[1720805302090,3.50992552,58332.0,58331.0,0.002913]
[1720805302506,3.25392155,58332.0,58331.0,0.002913]
[1720805302826,3.52092552,58332.0,58331.0,0.002913]
[1720805302964,3.40176235,58332.0,58331.0,0.002913]
[1720805303322,3.63978098,58332.0,58331.0,0.002913]
[1720805303521,3.40076235,58332.0,58331.0,0.002913]
[1720805303722,3.40117233,58332.0,58331.0,0.002913]
[1720805304137,3.23227585,58332.0,58331.0,0.002913]
[1720805304284,3.48530166,58332.0,58331.0,0.002913]
[1720805304482,3.49930166,58332.0,58331.0,0.002913]
[1720805305162,3.48530166,58332.0,58331.0,0.002913]
[1720805305370,3.00859686,58332.0,58331.0,0.002913]
[1720805305563,2.75557105,58332.0,58331.0,0.002913]
[1720805305992,3.26867245,58332.0,58331.0,0.002913]
[1720805306418,3.28267245,58332.0,58331.0,0.002913]
[1720805306618,3.26837416,58332.0,58331.0,0.002913]
[1720805307267,3.25437416,58332.0,58331.0,0.002913]
[1720805307493,3.28373519,58332.0,58331.0,0.002913]
[1720805309938,2.62573379,58332.0,58331.0,0.002913]
[1720805310318,2.44483379,58332.0,58331.0,0.002913]
[1720805310718,2.44427386,58332.0,58331.0,0.002913]
[1720805311178,2.24376148,58332.0,58331.0,0.002913]
[1720805311656,2.44376148,58332.0,58331.0,0.002913]
[1720805313285,2.35525985,58332.0,58331.0,0.002913]
[1720805315507,2.37936185,58332.0,58331.0,0.002913]
[1720805315705,2.44303749,58332.0,58331.0,0.002913]
[1720805316063,2.14303749,58332.0,58331.0,0.002913]
[1720805316487,2.05525985,58332.0,58331.0,0.002913]
[1720805316683,2.35525985,58332.0,58331.0,0.002913]
[1720805316914,2.24301161,58332.0,58331.0,0.002913]
[1720805317111,2.2430125,58332.0,58331.0,0.002913]
[1720805317428,2.4430125,58332.0,58331.0,0.002913]
[1720805320075,2.6239125,58332.0,58331.0,0.002913]
[1720805320689,2.96663402,58332.0,58331.0,0.002913]
[1720805321128,2.62377002,58332.0,58331.0,0.002913]
[1720805321329,2.96663402,58332.0,58331.0,0.002913]
[1720805321900,2.44287002,58332.0,58331.0,0.002913]
[1720805323920,2.35525985,58332.0,58331.0,0.002913]
[1720805324131,2.4427511,58332.0,58331.0,0.002913]
[1720805324531,2.44275255,58332.0,58331.0,0.002913]
[1720805325831,2.465782,58332.0,58331.0,0.002913]
[1720805326990,2.5591893,58332.0,58331.0,0.002913]
[1720805327237,2.64649253,58332.0,58331.0,0.002913]
[1720805327457,2.64649255,58332.0,58331.0,0.002913]
[1720805329774,2.6234631,58332.0,58331.0,0.002913]
[1720805330175,2.6234631,58332.0,58331.0,0.082213]
[1720805330176,1.1368351,58332.0,58331.0,0.082213]
[1720805330379,0.9675229,58332.0,58331.0,0.082213]
[1720805330513,1.0875229,58332.0,58331.0,0.082213]
[1720805330714,1.80772409,58332.0,58331.0,0.082213]
[1720805331143,1.89372409,58332.0,58331.0,0.002913]
[1720805331344,1.6849718,58332.0,58331.0,0.002913]
[1720805331551,1.6989718,58332.0,58331.0,0.002913]
[1720805331953,1.6849718,58332.0,58331.0,0.002913]
[1720805332432,1.6979718,58332.0,58331.0,0.002913]
[1720805332624,1.5992718,58332.0,58331.0,0.002913]
[1720805332750,1.1234078,58332.0,58331.0,0.002913]
[1720805332952,1.1234078,58332.0,58331.0,0.145613]
[1720805332953,1.1344078,58332.0,58331.0,0.145613]
[1720805333160,1.46881456,58332.0,58331.0,0.145613]
[1720805333380,1.30803414,58332.0,58331.0,0.145613]
[1720805333636,0.45087414,58332.0,58331.0,0.145613]
[1720805333878,0.14203814,58332.0,58331.0,1.01508547]
[1720805334112,0.14203814,58332.0,58331.0,1.35795547]
[1720805334342,0.05230588,58332.0,58331.0,1.35795547]
[1720805334732,0.07739813,58332.0,58331.0,1.35795547]
[1720805334924,0.06339813,58332.0,58331.0,1.35795547]
[1720805335146,0.06439813,58332.0,58331.0,1.35895547]
[1720805335525,0.13047919,58332.0,58331.0,1.35895547]
[1720805335732,0.26125003,58332.0,58331.0,1.35895547]
[1720805335940,0.26225003,58332.0,58331.0,1.35895547]
[1720805336378,0.21006173,58332.0,58331.0,1.35895547]
[1720805336983,0.15869309,58332.0,58331.0,1.35895547]
[1720805337184,0.21005943,58332.0,58331.0,1.35895547]
[1720805337300,0.07875925,58332.0,58331.0,1.47266034]
[1720805337507,0.07875925,58332.0,58331.0,1.35895547]
[1720805337508,0.02739483,58332.0,58331.0,1.35895547]
[1720805337720,0.15816567,58332.0,58331.0,1.35895547]
[1720805339022,0.1644608,58332.0,58331.0,0.15891047]
[1720805339241,0.1644608,58332.0,58331.0,0.67321547]
[1720805339882,0.1634608,58332.0,58331.0,0.67321547]
[1720805340359,0.1644608,58332.0,58331.0,0.67321547]
[1720805340590,0.15884396,58332.0,58331.0,0.67321547]
[1720805340740,0.15884396,58332.0,58331.0,0.67221547]
[1720805340741,0.15784396,58332.0,58331.0,0.67221547]
[1720805340945,0.16413909,58332.0,58331.0,0.67221547]
[1720805341538,0.16513909,58332.0,58331.0,0.67321547]
[1720805341962,0.16413909,58332.0,58331.0,0.67221547]
[1720805342293,0.16413909,58332.0,58331.0,0.67321547]
[1720805342740,0.16513909,58332.0,58331.0,0.67321547]
[1720805342939,0.13989597,58332.0,58331.0,0.67321547]
[1720805343142,0.15816983,58332.0,58331.0,0.67321547]
[1720805343291,0.13360084,58332.0,58331.0,0.67321547]
[1720805343498,0.16446552,58332.0,58331.0,0.67321547]
[1720805343999,0.15817039,58332.0,58331.0,0.67321547]
[1720805344209,0.16446552,58332.0,58331.0,0.33034547]
[1720805344412,0.16446552,58332.0,58331.0,0.15891047]
[1720805344610,0.16446552,58332.0,58331.0,0.09371047]
[1720805344611,1.24374817,58332.0,58331.0,0.09371047]
[1720805344787,1.19364615,58332.0,58331.0,0.09371047]
[1720805345168,1.19364615,58332.0,58331.0,0.081413]
[1720805345169,1.27059132,58332.0,58331.0,0.081413]
[1720805345375,1.18989307,58332.0,58331.0,0.081413]
[1720805345526,0.2547879,58332.0,58331.0,0.080413]
[1720805345735,0.2987744,58332.0,58331.0,0.26414547]
[1720805346091,0.15944399,58332.0,58331.0,0.32684547]
[1720805346297,0.25078537,58332.0,58331.0,0.32684547]
[1720805346500,0.24978537,58332.0,58331.0,0.32684547]
[1720805346714,0.24978537,58332.0,58331.0,0.66971547]
[1720805346895,0.25078537,58332.0,58331.0,0.66971547]
[1720805347084,0.25178537,58332.0,58331.0,0.67071547]
[1720805347485,0.25078537,58332.0,58331.0,0.66971547]
[1720805347709,0.25178537,58332.0,58331.0,0.67071547]
[1720805347828,0.25078537,58332.0,58331.0,0.67071547]
[1720805348305,0.02776255,58332.0,58331.0,1.47016034]
[1720805348514,0.02776255,58332.0,58331.0,1.81303034]
[1720805348718,0.00183,58332.0,58331.0,1.81303034]
[1720805349289,0.00283,58332.0,58331.0,1.81303034]
[1720805349701,0.00183,58332.0,58331.0,1.81303034]
[1720805349941,0.00083,58332.0,58331.0,1.81203034]
[1720805350278,0.00283,58332.0,58331.0,1.82203034]
[1720805351001,0.00283,58332.0,58331.0,1.8322581]
[1720805351432,0.00283,58332.0,58331.0,1.9552581]
[1720805352928,0.00283,58332.0,58331.0,1.9322581]
[1720805353127,0.00283,58332.0,58331.0,1.47568323]
[1720805353350,0.13360084,58332.0,58331.0,1.36545547]
[1720805353665,0.03132924,58332.0,58331.0,1.36545547]
[1720805354132,0.16210008,58332.0,58331.0,1.36545547]
[1720805354332,0.16839521,58332.0,58331.0,1.36545547]
[1720805355192,0.16839521,58332.0,58331.0,1.02258547]
[1720805355399,0.68269121,58332.0,58331.0,0.02521047]
[1720805355599,1.23028192,58332.0,58331.0,0.012913]
[1720805355822,2.05772349,58332.0,58331.0,0.012913]
[1720805356044,2.509138,58332.0,58331.0,0.012913]
[1720805356243,2.18102324,58332.0,58331.0,0.012913]
[1720805356444,2.18002324,58332.0,58331.0,0.012913]
[1720805356665,2.18602324,58332.0,58331.0,0.012913]
[1720805356819,2.18602324,58332.0,58331.0,0.002913]
[1720805356820,2.18502324,58332.0,58331.0,0.002913]
[1720805357203,2.18702324,58332.0,58331.0,0.003913]
[1720805357399,2.18702324,58332.0,58331.0,0.002913]
[1720805357601,2.17902324,58332.0,58331.0,0.002913]
[1720805358000,2.18702324,58332.0,58331.0,0.003913]
[1720805358204,1.84415924,58332.0,58331.0,0.003913]
[1720805358410,1.12635572,58332.0,58331.0,0.003913]
[1720805358943,0.26919572,58332.0,58331.0,0.003913]
[1720805359156,0.27519572,58332.0,58331.0,0.518218]
[1720805359784,0.27519572,58332.0,58331.0,0.53070409]
[1720805359998,0.26919572,58332.0,58331.0,0.53070409]
[1720805360204,0.27519572,58332.0,58331.0,0.53070409]
[1720805360629,0.26719572,58332.0,58331.0,0.52970409]
[1720805360829,0.26119572,58332.0,58331.0,0.52970409]
[1720805361045,0.27219572,58332.0,58331.0,0.53070409]
[1720805361252,0.27219572,58332.0,58331.0,0.01539909]
[1720805361253,0.78649172,58332.0,58331.0,0.01539909]
[1720805361386,1.41928395,58332.0,58331.0,0.01539909]
[1720805361587,1.32178051,58332.0,58331.0,0.01639909]
[1720805361803,1.32178051,58332.0,58331.0,0.003913]
[1720805361992,1.83314795,58332.0,58331.0,0.003913]
[1720805362194,1.73064451,58332.0,58331.0,0.003913]
[1720805362392,1.73031073,58332.0,58331.0,0.003913]
[1720805362841,1.64541976,58332.0,58331.0,0.003913]
[1720805363048,1.66288594,58332.0,58331.0,0.003913]
[1720805363243,1.73105322,58332.0,58331.0,0.003913]
[1720805363469,1.66288594,58332.0,58331.0,0.003913]
[1720805365263,2.00574994,58332.0,58331.0,0.003913]
[1720805365490,2.37598734,58332.0,58331.0,0.003913]
[1720805365719,2.47517291,58332.0,58331.0,0.003913]
[1720805366157,2.47367743,58332.0,58331.0,0.003913]
[1720805366765,2.47067743,58332.0,58331.0,0.003913]
[1720805366986,2.28744003,58332.0,58331.0,0.002913]
[1720805367197,2.83500403,58332.0,58331.0,0.002913]
[1720805367474,2.80700403,58332.0,58331.0,0.002913]
[1720805367906,2.83400403,58332.0,58331.0,0.002913]
[1720805368115,2.99024143,58332.0,58331.0,0.002913]
[1720805368547,3.35821869,58332.0,58331.0,0.002913]
[1720805368723,3.34421869,58332.0,58331.0,0.002913]
[1720805368958,3.34455498,58332.0,58331.0,0.002913]
[1720805369157,3.1714399,58332.0,58331.0,0.002913]
[1720805369561,3.34455498,58332.0,58331.0,0.002913]
[1720805369765,2.7882025,58332.0,58331.0,0.002913]
[1720805370006,2.9882025,58332.0,58331.0,0.002913]
[1720805370231,2.8022025,58332.0,58331.0,0.002913]
[1720805370427,2.8112025,58332.0,58331.0,0.002913]
[1720805370759,2.7972025,58332.0,58331.0,0.002913]
[1720805371171,2.8112025,58332.0,58331.0,0.002913]
[1720805371655,2.4683385,58332.0,58331.0,0.002913]
[1720805372194,2.4686753,58332.0,58331.0,0.002913]
[1720805372594,2.6389127,58332.0,58331.0,0.002913]
[1720805373194,2.8389127,58332.0,58331.0,0.002913]
[1720805373324,2.6686753,58332.0,58331.0,0.002913]
[1720805374349,2.4686753,58332.0,58331.0,0.002913]
[1720805374551,2.6686753,58332.0,58331.0,0.002913]
[1720805375569,2.66865052,58332.0,58331.0,0.002913]
[1720805375723,2.83888605,58332.0,58331.0,0.002913]
[1720805376112,2.66864865,58332.0,58331.0,0.002913]
[1720805376287,2.56864865,58332.0,58331.0,0.002913]
[1720805376430,2.66864865,58332.0,58331.0,0.002913]
[1720805376797,2.46864865,58332.0,58331.0,0.002913]
[1720805377196,2.66864865,58332.0,58331.0,0.002913]
[1720805378004,2.83888605,58332.0,58331.0,0.002913]
[1720805379139,2.83903234,58332.0,58331.0,0.002913]
[1720805379659,2.74446644,58332.0,58331.0,0.002913]
[1720805379868,2.73913228,58332.0,58331.0,0.002913]
[1720805380068,2.83913228,58332.0,58331.0,0.002913]
[1720805382158,2.74446644,58332.0,58331.0,0.002913]
[1720805382414,3.18092493,58332.0,58331.0,0.002913]
[1720805382671,3.45402212,58332.0,58331.0,0.002913]
[1720805382933,3.28093355,58332.0,58331.0,0.002913]
[1720805383595,3.26693355,58332.0,58331.0,0.002913]
[1720805383963,3.28093355,58332.0,58331.0,0.002913]
[1720805384286,3.26693355,58332.0,58331.0,0.002913]
[1720805384625,3.28093355,58332.0,58331.0,0.002913]
[1720805385029,2.76783215,58332.0,58331.0,0.002913]
[1720805385305,2.56783215,58332.0,58331.0,0.002913]
[1720805385709,2.56541805,58332.0,58331.0,0.002913]
[1720805385901,2.55141805,58332.0,58331.0,0.002913]
[1720805386103,2.47471805,58332.0,58331.0,0.002913]
[1720805386505,2.48871805,58332.0,58331.0,0.002913]
[1720805387491,2.65895545,58332.0,58331.0,0.002913]
[1720805388379,2.72485545,58332.0,58331.0,0.002913]
[1720805388962,2.63366644,58332.0,58331.0,0.002913]
[1720805389146,2.92528722,58332.0,58331.0,0.002913]
[1720805389521,2.92529549,58332.0,58331.0,0.002913]
[1720805390539,2.75505809,58332.0,58331.0,0.002913]
[1720805390740,2.55505809,58332.0,58331.0,0.002913]
[1720805391942,2.46342904,58332.0,58331.0,0.002913]
[1720805392133,2.55428873,58332.0,58331.0,0.002913]
[1720805392395,2.48818119,58332.0,58331.0,0.002913]
[1720805392948,2.63147057,58332.0,58331.0,0.002913]
[1720805393712,2.83147057,58332.0,58331.0,0.002913]
[1720805394838,2.14138119,58332.0,58331.0,0.002913]
[1720805394981,2.04138119,58332.0,58331.0,0.002913]
[1720805395204,1.94138119,58332.0,58331.0,0.002913]
[1720805395407,1.47851719,58332.0,58331.0,0.002913]
[1720805395565,1.47851719,58332.0,58331.0,0.143513]
[1720805395566,1.48124898,58332.0,58331.0,0.143513]
[1720805396251,1.63748638,58332.0,58331.0,0.143513]
[1720805396473,1.72714528,58332.0,58331.0,0.081013]
[1720805396701,1.73714528,58332.0,58331.0,0.081013]
[1720805396911,1.75014528,58332.0,58331.0,0.081013]
[1720805397131,1.75014528,58332.0,58331.0,0.002913]
[1720805397132,1.82714528,58332.0,58331.0,0.002913]
[1720805397348,2.48291298,58332.0,58331.0,0.002913]
[1720805397774,2.47191298,58332.0,58331.0,0.002913]
[1720805397983,2.99567698,58332.0,58331.0,0.002913]
[1720805398193,3.17291438,58332.0,58331.0,0.002913]
[1720805398453,3.16591438,58332.0,58331.0,0.002913]
[1720805398876,3.06343044,58332.0,58331.0,0.002913]
[1720805399077,3.16097731,58332.0,58331.0,0.002913]
[1720805399286,3.06843044,58332.0,58331.0,0.002913]
[1720805399505,3.1613437,58332.0,58331.0,0.002913]
[1720805399912,3.1613437,58332.0,58324.0,0.009097]
[1720805399913,0.42629513,58330.0,58324.0,0.009097]
[1720805400132,0.65289597,58316.0,58315.0,0.009097]
[1720805400337,2.0577513,58316.0,58315.0,0.009097]
[1720805400703,2.3627693,58316.0,58315.0,0.009097]
[1720805400933,2.5627693,58316.0,58315.0,0.009097]
[1720805401431,2.56615525,58316.0,58315.0,0.009097]
[1720805401671,2.74705525,58316.0,58315.0,0.009097]
[1720805401911,2.71859381,58316.0,58315.0,0.009097]
[1720805402143,2.79369387,58316.0,58315.0,0.009097]
[1720805402383,2.74546133,58316.0,58315.0,0.009097]
[1720805402611,3.17972033,58316.0,58315.0,0.009097]
[1720805402843,3.47708864,58316.0,58315.0,0.009097]
[1720805403087,3.46308864,58316.0,58315.0,0.009097]
[1720805403325,3.37708864,58316.0,58315.0,0.009097]
[1720805403540,3.53894123,58316.0,58315.0,0.009097]
[1720805404021,3.55294123,58316.0,58315.0,0.009097]
[1720805404232,3.55330031,58316.0,58315.0,0.009097]
[1720805404458,3.85443342,58316.0,58315.0,0.009097]
[1720805404661,3.56230023,58316.0,58315.0,0.009097]
[1720805405214,3.42503192,58316.0,58315.0,0.009097]
[1720805405820,3.43903192,58316.0,58315.0,0.009097]
[1720805406227,3.41103192,58316.0,58315.0,0.009097]
[1720805406425,3.42503192,58316.0,58315.0,0.009097]
[1720805406692,3.43903192,58316.0,58315.0,0.009097]
[1720805406921,3.42503192,58316.0,58315.0,0.009097]
[1720805407128,2.75982033,58316.0,58315.0,0.009097]
[1720805407342,2.85982033,58316.0,58315.0,0.009097]
[1720805407518,3.21677933,58316.0,58315.0,0.009097]
[1720805407739,3.20277933,58316.0,58315.0,0.009097]
[1720805407918,3.38701673,58316.0,58315.0,0.009097]
[1720805408272,2.86315773,58316.0,58315.0,0.009097]
[1720805408504,3.04405773,58316.0,58315.0,0.009097]
[1720805409075,3.21735172,58316.0,58315.0,0.009097]
[1720805409283,2.75221432,58316.0,58315.0,0.009097]
[1720805409458,1.93596133,58316.0,58315.0,0.009097]
[1720805409646,1.94996133,58316.0,58315.0,0.009097]
[1720805409847,1.93596133,58316.0,58315.0,0.009097]
[1720805410273,1.94996133,58316.0,58315.0,0.009097]
[1720805410487,1.93596133,58316.0,58315.0,0.009097]
[1720805410691,1.93396133,58316.0,58315.0,0.009097]
[1720805410946,0.71453505,58316.0,58315.0,0.009097]
[1720805411112,0.79226977,58316.0,58315.0,0.087997]
[1720805411300,1.03913804,58316.0,58315.0,0.087997]
[1720805411515,1.13520702,58316.0,58315.0,0.087997]
[1720805412724,1.12520702,58316.0,58315.0,0.087997]
[1720805412921,0.26151489,58316.0,58315.0,0.152797]
[1720805413112,0.24951489,58316.0,58315.0,0.152797]
[1720805413350,0.38415739,58316.0,58315.0,0.152797]
[1720805413497,0.38615739,58316.0,58315.0,0.152797]
[1720805413676,0.24951489,58316.0,58315.0,0.152797]
[1720805414114,0.25094081,58316.0,58315.0,0.153797]
[1720805414523,0.25094081,58316.0,58315.0,0.152797]
[1720805414894,0.20134415,58316.0,58315.0,0.152797]
[1720805415277,0.20134402,58316.0,58315.0,0.324279]
[1720805415496,0.05641168,58316.0,58315.0,0.324279]
[1720805415745,0.05133298,58317.0,58316.0,0.28518387]
[1720805415943,0.05133298,58322.0,58321.0,0.314264]
[1720805416150,0.2292726,58325.0,58324.0,0.59941687]
[1720805416151,0.05133298,58325.0,58324.0,0.59941687]
[1720805416350,0.02898636,58325.0,58324.0,0.77087287]
[1720805416564,0.0013,58328.0,58327.0,0.1428]
[1720805416776,0.0273058,58328.0,58327.0,0.657141]
[1720805416984,0.15390664,58328.0,58327.0,1.000035]
[1720805417362,0.15390664,58328.0,58327.0,1.01138762]
[1720805418042,0.15590664,58328.0,58327.0,0.66949362]
[1720805418720,0.38495756,58328.0,58327.0,0.15515262]
[1720805418908,1.01942177,58328.0,58327.0,0.15515262]
[1720805419123,1.09638946,58328.0,58327.0,0.15515262]
[1720805419334,1.09638946,58328.0,58316.0,0.00226041]
[1720805419335,0.00629513,58317.0,58316.0,0.00226041]
[1720805419595,0.00629513,58317.0,58315.0,0.43631923]
[1720805419596,0.30437497,58316.0,58315.0,0.092097]
[1720805419804,1.81856686,58316.0,58315.0,0.009097]
[1720805420004,2.33176326,58316.0,58315.0,0.009097]
[1720805420219,2.16152586,58316.0,58315.0,0.009097]
[1720805420428,2.06986127,58316.0,58315.0,0.009097]
[1720805420543,2.1638834,58316.0,58315.0,0.009097]
[1720805421002,2.1771275,58316.0,58315.0,0.010097]
[1720805421205,2.1681275,58316.0,58315.0,0.009097]
[1720805421558,2.3383649,58316.0,58315.0,0.009097]
[1720805421981,2.1681275,58316.0,58315.0,0.009097]
[1720805422187,2.1621275,58316.0,58315.0,0.009097]
[1720805422608,2.1771275,58316.0,58315.0,0.010097]
[1720805422820,1.1244095,58316.0,58315.0,0.010097]
[1720805423026,1.1244095,58316.0,58315.0,0.009097]
[1720805423230,1.26166171,58316.0,58315.0,0.010097]
[1720805423440,1.23000883,58316.0,58315.0,0.010097]
[1720805423611,1.23000883,58316.0,58315.0,0.009097]
[1720805423612,1.23765866,58316.0,58315.0,0.009097]
[1720805423817,1.03214327,58316.0,58315.0,0.010097]
[1720805424027,1.25164247,58316.0,58315.0,0.010097]
[1720805424205,1.24264247,58316.0,58315.0,0.009097]
[1720805424417,2.09054716,58316.0,58315.0,0.010097]
[1720805424642,2.09654716,58316.0,58315.0,0.010097]
[1720805425486,2.09054716,58316.0,58315.0,0.010097]
[1720805425741,1.92430976,58316.0,58315.0,0.009097]
[1720805425969,1.91830976,58316.0,58315.0,0.009097]
[1720805426181,1.91730976,58316.0,58315.0,0.009097]
[1720805426393,2.06822667,58316.0,58315.0,0.009097]
[1720805426613,1.92430976,58316.0,58315.0,0.009097]
[1720805426843,1.93630976,58316.0,58315.0,0.009097]
[1720805427068,2.08518366,58316.0,58315.0,0.009097]
[1720805427274,2.49392203,58316.0,58315.0,0.009097]
[1720805427493,2.34000397,58316.0,58315.0,0.009097]
[1720805427688,2.23179887,58316.0,58315.0,0.009097]
[1720805428501,2.03179887,58316.0,58315.0,0.009097]
[1720805428914,2.21979887,58316.0,58315.0,0.009097]
[1720805429370,2.02379887,58316.0,58315.0,0.009097]
[1720805429578,2.02279887,58316.0,58315.0,0.009097]
[1720805429803,2.03679887,58316.0,58315.0,0.009097]
[1720805429913,2.02379887,58316.0,58315.0,0.009097]
[1720805430122,1.92306127,58316.0,58315.0,0.009097]
[1720805430336,2.02066649,58316.0,58315.0,0.009097]
[1720805430535,1.97253333,58316.0,58315.0,0.009097]
[1720805430741,2.18919305,58316.0,58315.0,0.009097]
[1720805430982,2.02229198,58316.0,58315.0,0.009097]
[1720805431447,1.92229198,58316.0,58315.0,0.009097]
[1720805431661,1.61323068,58316.0,58315.0,0.009097]
[1720805431816,1.44533298,58316.0,58315.0,0.009097]
[1720805432239,1.45933298,58316.0,58315.0,0.009097]
[1720805432535,1.44533298,58316.0,58315.0,0.009097]
[1720805432938,1.47033298,58316.0,58315.0,0.009097]
[1720805433262,1.47021014,58316.0,58315.0,0.009097]
[1720805433462,1.37210227,58316.0,58315.0,0.009097]
[1720805433672,1.45721014,58316.0,58315.0,0.009097]
[1720805433931,1.46721014,58316.0,58315.0,0.009097]
[1720805434105,1.46721014,58316.0,58315.0,0.152197]
[1720805434106,0.13395817,58316.0,58315.0,0.152197]
[1720805434336,0.39410199,58316.0,58315.0,0.152197]
[1720805434552,0.34281007,58316.0,58315.0,0.16358242]
[1720805434752,0.17133107,58316.0,58315.0,0.16358242]
[1720805435237,0.15933107,58316.0,58315.0,0.16358242]
[1720805435443,0.03273023,58316.0,58315.0,1.13469729]
[1720805435650,0.02473023,58316.0,58315.0,1.13469729]
[1720805435859,0.02473023,58316.0,58315.0,1.47766129]
[1720805436202,0.02273023,58316.0,58315.0,1.47766129]
[1720805436418,0.17789276,58322.0,58319.0,0.342941]
[1720805436609,0.02273151,58321.0,58320.0,0.52577375]
[1720805436805,0.02287973,58321.0,58320.0,0.52577375]
[1720805437004,0.02207661,58321.0,58320.0,0.52577375]
[1720805437208,0.17788211,58322.0,58321.0,0.514393]
[1720805437459,0.13510164,58322.0,58321.0,0.66796201]
[1720805437612,0.13510164,58322.0,58321.0,1.46752488]
[1720805437613,0.02207663,58322.0,58321.0,1.46752488]
[1720805437836,0.14867747,58322.0,58321.0,0.73669101]
[1720805438042,0.6693566,58322.0,58321.0,0.15356901]
[1720805438301,0.6693566,58322.0,58321.0,0.01136901]
[1720805438570,1.12495576,58322.0,58321.0,0.01136901]
[1720805438771,0.30436597,58319.0,58318.0,0.0632]
[1720805438915,0.3264426,58319.0,58318.0,0.0632]
[1720805439119,1.0921826,58319.0,58318.0,0.01137721]
[1720805439344,2.57499621,58319.0,58318.0,0.01137721]
[1720805439495,1.55325197,58316.0,58315.0,0.009097]
[1720805439707,1.66301821,58316.0,58315.0,0.009097]
[1720805439913,2.00597721,58316.0,58315.0,0.009097]
[1720805440194,1.92305922,58316.0,58315.0,0.009097]
[1720805440405,1.90571534,58316.0,58315.0,0.009097]
[1720805440613,1.90571524,58316.0,58315.0,0.009097]
[1720805440818,1.90971524,58316.0,58315.0,0.009097]
[1720805441027,2.00971524,58316.0,58315.0,0.009097]
[1720805441233,2.16357947,58316.0,58315.0,0.009097]
[1720805441588,2.06957947,58316.0,58315.0,0.009097]
[1720805442246,2.16957947,58316.0,58315.0,0.009097]
[1720805442408,2.01571524,58316.0,58315.0,0.009097]
[1720805442609,2.16959794,58316.0,58315.0,0.009097]
[1720805443039,2.01571524,58316.0,58315.0,0.009097]
[1720805443352,2.01171524,58316.0,58315.0,0.009097]
[1720805443556,1.80171524,58316.0,58315.0,0.009097]
[1720805443763,1.45875624,58316.0,58315.0,0.009097]
[1720805443996,1.44875624,58316.0,58315.0,0.009097]
[1720805444204,1.72264772,58316.0,58315.0,0.009097]
[1720805444423,1.72664772,58316.0,58315.0,0.009097]
[1720805444864,1.45275624,58316.0,58315.0,0.009097]
[1720805445076,1.10979724,58316.0,58315.0,0.009097]
[1720805445663,1.23803174,58316.0,58315.0,0.009097]
[1720805446639,1.45217234,58316.0,58315.0,0.009097]
[1720805447125,1.57217234,58316.0,58315.0,0.009097]
[1720805448472,1.45217234,58316.0,58315.0,0.009097]
[1720805449302,1.10921334,58316.0,58315.0,0.009097]
[1720805449918,1.02714122,58316.0,58315.0,0.009097]
[1720805450116,1.10825951,58316.0,58315.0,0.009097]
[1720805450319,1.02714122,58316.0,58315.0,0.009097]
[1720805450524,1.10826633,58316.0,58315.0,0.009097]
[1720805452081,0.89360981,58316.0,58315.0,0.009097]
[1720805452665,0.76530733,58316.0,58315.0,0.009097]
[1720805452871,0.89370147,58316.0,58315.0,0.02048241]
[1720805453210,0.89360409,58316.0,58315.0,0.009097]
[1720805453621,0.37916609,58316.0,58315.0,0.089897]
[1720805453828,0.37916609,58316.0,58315.0,0.261379]
[1720805454031,0.25084556,58316.0,58315.0,0.27502482]
[1720805454609,0.25084556,58316.0,58315.0,0.27276441]
[1720805455443,0.37916609,58316.0,58315.0,0.27276441]
[1720805455879,0.37916609,58316.0,58315.0,0.27502482]
[1720805456116,0.24636781,58316.0,58315.0,0.68438882]
[1720805456317,0.1950596,58316.0,58315.0,0.68212841]
[1720805456531,0.16908775,58316.0,58315.0,0.68212841]
[1720805456747,0.10876744,58316.0,58315.0,0.68212841]
[1720805456967,0.05742684,58316.0,58315.0,0.68212841]
[1720805457173,0.05742684,58316.0,58315.0,1.36805641]
[1720805457603,0.18402768,58316.0,58315.0,1.02509241]
[1720805457806,0.24049426,58316.0,58315.0,1.02509241]
[1720805457962,0.23449426,58316.0,58315.0,1.02509241]
[1720805458136,0.23749426,58316.0,58315.0,1.02509241]
[1720805458340,0.05542684,58316.0,58315.0,1.48185897]
[1720805458744,0.02857859,58316.0,58315.0,1.48185897]
[1720805459200,0.02857859,58316.0,58315.0,1.36805641]
[1720805459756,0.02867386,58316.0,58315.0,1.36805641]
[1720805460195,0.02852084,58316.0,58315.0,1.36805641]
[1720805460404,0.15512168,58316.0,58315.0,1.36805641]
[1720805460737,0.02852084,58316.0,58315.0,1.36805641]
[1720805460894,0.0553678,58316.0,58315.0,1.36805641]
[1720805461096,0.02852084,58316.0,58315.0,1.36805641]
[1720805461550,0.02052084,58316.0,58315.0,1.48185897]
[1720805461783,0.05133231,58319.0,58315.0,1.48185897]
[1720805461784,0.05133231,58319.0,58318.0,0.45674956]
[1720805461981,0.05133231,58319.0,58315.0,0.02048241]
[1720805461982,0.05133231,58324.0,58323.0,0.315058]
[1720805462189,0.12660084,58324.0,58323.0,0.486517]
[1720805462391,0.14727789,58324.0,58323.0,0.66933854]
[1720805462745,0.02067705,58324.0,58323.0,1.01225554]
[1720805462946,0.02071355,58325.0,58324.0,0.514368]